[Event "*** Titled Tuesday Blitz"]
[Site "Chess.com"]
[Date "2021.03.02"]
[Round "7"]
[White "korkmaz16"]
[Black "KonstantinB_1983"]
[Result "0-1"]
[WhiteElo "2401"]
[BlackElo "2542"]
[TimeControl "180+1"]
[EndTime "11:18:08 PST"]
[Termination "KonstantinB_1983 won on time"]

1. e4 {[%clk 0:03:00.9]} 1... d5 {[%clk 0:02:58.7]} 2. exd5 {[%clk 0:03:00.6]}
2... Qxd5 {[%clk 0:02:59.1]} 3. Nc3 {[%clk 0:02:59.9]} 3... Qd6 {[%clk
0:02:59.5]} 4. d4 {[%clk 0:02:58]} 4... Nf6 {[%clk 0:02:59.6]} 5. Bd3 {[%clk
0:02:57.4]} 5... a6 {[%clk 0:02:57.4]} 6. Ne4 {[%clk 0:02:42.1]} 6... Nxe4
{[%clk 0:02:54.6]} 7. Bxe4 {[%clk 0:02:41.8]} 7... Nc6 {[%clk 0:02:52]} 8. c3
{[%clk 0:02:37.7]} 8... g6 {[%clk 0:02:51.8]} 9. Nf3 {[%clk 0:02:32.5]} 9... Bg7
{[%clk 0:02:49.3]} 10. O-O {[%clk 0:02:31.6]} 10... O-O {[%clk 0:02:44.9]} 11.
h3 {[%clk 0:02:28.1]} 11... Rb8 {[%clk 0:02:37.7]} 12. Re1 {[%clk 0:02:25.4]}
12... h6 {[%clk 0:02:30.9]} 13. Nd2 {[%clk 0:01:58.7]} 13... Be6 {[%clk
0:02:22.8]} 14. Qe2 {[%clk 0:01:51]} 14... Bd5 {[%clk 0:02:08.5]} 15. Nc4 {[%clk
0:01:29.3]} 15... Qd7 {[%clk 0:02:05.1]} 16. Bxd5 {[%clk 0:01:24.5]} 16... Qxd5
{[%clk 0:02:03.8]} 17. Ne3 {[%clk 0:01:25.4]} 17... Qd7 {[%clk 0:01:51.5]} 18.
Qf3 {[%clk 0:01:23.8]} 18... e6 {[%clk 0:01:48.2]} 19. Ng4 {[%clk 0:01:04.3]}
19... f5 {[%clk 0:01:30.4]} 20. Nxh6+ {[%clk 0:00:48.6]} 20... Kh7 {[%clk
0:01:29.3]} 21. Qf4 {[%clk 0:00:46.9]} 21... Rbe8 {[%clk 0:01:22.6]} 22. Bd2
{[%clk 0:00:35.9]} 22... e5 {[%clk 0:01:19.8]} 23. dxe5 {[%clk 0:00:26.6]} 23...
Bxe5 {[%clk 0:01:09.2]} 24. Rxe5 {[%clk 0:00:18.7]} 24... Nxe5 {[%clk
0:01:07.1]} 25. Be3 {[%clk 0:00:18.7]} 25... Nc6 {[%clk 0:00:57.4]} 26. Qh4
{[%clk 0:00:18.4]} 26... Kg7 {[%clk 0:00:56.8]} 27. Qg5 {[%clk 0:00:09]} 27...
Qe7 {[%clk 0:00:52]} 28. h4 {[%clk 0:00:06.8]} 28... Qxg5 {[%clk 0:00:49.9]} 29.
hxg5 {[%clk 0:00:07.3]} 29... Rd8 {[%clk 0:00:47.5]} 30. b4 {[%clk 0:00:04.1]}
30... f4 {[%clk 0:00:43.6]} 31. Bc5 {[%clk 0:00:03.9]} 31... Rfe8 {[%clk
0:00:41.2]} 32. a4 {[%clk 0:00:04.2]} 32... Rd5 {[%clk 0:00:40.3]} 33. c4 {[%clk
0:00:03.9]} 33... Rxg5 {[%clk 0:00:39.6]} 0-1

[Event "*** Titled Tuesday Blitz"]
[Site "Chess.com"]
[Date "2021.03.02"]
[Round "7"]
[White "WcmDominicToretto"]
[Black "KarateBaby"]
[Result "0-1"]
[WhiteElo "1926"]
[BlackElo "2206"]
[TimeControl "180+1"]
[EndTime "11:18:09 PST"]
[Termination "KarateBaby won by checkmate"]

1. e4 {[%clk 0:03:00.9]} 1... g6 {[%clk 0:02:54.7]} 2. Bc4 {[%clk 0:02:58.4]}
2... Bg7 {[%clk 0:02:55.6]} 3. Qf3 {[%clk 0:02:58.3]} 3... e6 {[%clk 0:02:55.8]}
4. Nc3 {[%clk 0:02:55.6]} 4... Ne7 {[%clk 0:02:54.6]} 5. d4 {[%clk 0:02:46.4]}
5... d5 {[%clk 0:02:53.5]} 6. exd5 {[%clk 0:02:45.8]} 6... exd5 {[%clk
0:02:54.4]} 7. Nxd5 {[%clk 0:02:44.2]} 7... Nxd5 {[%clk 0:02:49.7]} 8. Bxd5
{[%clk 0:02:41.1]} 8... O-O {[%clk 0:02:49.5]} 9. Ne2 {[%clk 0:02:39.3]} 9... c6
{[%clk 0:02:47.7]} 10. Bc4 {[%clk 0:02:34]} 10... b5 {[%clk 0:02:45.4]} 11. Bb3
{[%clk 0:02:33.4]} 11... a5 {[%clk 0:02:44.8]} 12. a4 {[%clk 0:02:32.9]} 12...
Ra7 {[%clk 0:02:38.8]} 13. O-O {[%clk 0:02:30.7]} 13... Nd7 {[%clk 0:02:31.1]}
14. Be3 {[%clk 0:02:22.8]} 14... Nf6 {[%clk 0:02:29.3]} 15. d5 {[%clk
0:02:17.3]} 15... Bg4 {[%clk 0:02:28.5]} 16. Qg3 {[%clk 0:01:57.8]} 16... Bxe2
{[%clk 0:02:28.3]} 17. Bxa7 {[%clk 0:01:56.5]} 17... Bxf1 {[%clk 0:02:27.6]} 18.
Rxf1 {[%clk 0:01:55.6]} 18... bxa4 {[%clk 0:02:20.5]} 19. Bxa4 {[%clk
0:01:52.1]} 19... cxd5 {[%clk 0:02:20.7]} 20. Bc5 {[%clk 0:01:50.4]} 20... Ne4
{[%clk 0:02:20.3]} 21. Qa3 {[%clk 0:01:47]} 21... Nxc5 {[%clk 0:02:15.9]} 22.
Qxc5 {[%clk 0:01:47.1]} 22... Bxb2 {[%clk 0:02:16]} 23. Rd1 {[%clk 0:01:43.7]}
23... d4 {[%clk 0:02:15.2]} 24. Qb5 {[%clk 0:01:34.2]} 24... Bc3 {[%clk
0:02:09.5]} 25. Qc4 {[%clk 0:01:27.9]} 25... Qe7 {[%clk 0:01:54.3]} 26. h3
{[%clk 0:01:21.6]} 26... Qb4 {[%clk 0:01:52.9]} 27. Qa2 {[%clk 0:01:18.8]} 27...
Rb8 {[%clk 0:01:41.4]} 28. Bd7 {[%clk 0:01:08.2]} 28... Qb2 {[%clk 0:01:37.4]}
29. Qd5 {[%clk 0:01:02.7]} 29... Qxc2 {[%clk 0:01:36.2]} 30. Rf1 {[%clk
0:01:01.1]} 30... d3 {[%clk 0:01:33]} 31. Bb5 {[%clk 0:00:55.5]} 31... d2 {[%clk
0:01:31.3]} 32. Bc4 {[%clk 0:00:54.5]} 32... Rf8 {[%clk 0:01:25]} 33. Bb3 {[%clk
0:00:51.3]} 33... Qb2 {[%clk 0:01:23.5]} 34. Ba2 {[%clk 0:00:44.3]} 34... a4
{[%clk 0:01:17.8]} 35. Qc4 {[%clk 0:00:33.2]} 35... a3 {[%clk 0:01:11.1]} 36.
Bb3 {[%clk 0:00:18.8]} 36... Qc1 {[%clk 0:01:02.9]} 37. Qd3 {[%clk 0:00:14.7]}
37... Qb2 {[%clk 0:01:00.3]} 38. Qc4 {[%clk 0:00:13.8]} 38... Kh8 {[%clk
0:00:59.9]} 39. Ba2 {[%clk 0:00:10.4]} 39... Qc2 {[%clk 0:00:54.4]} 40. Bb3
{[%clk 0:00:10.1]} 40... Qb2 {[%clk 0:00:52.2]} 41. Ba2 {[%clk 0:00:09.9]} 41...
Rd8 {[%clk 0:00:51.8]} 42. Bb3 {[%clk 0:00:09.3]} 42... a2 {[%clk 0:00:50.9]}
43. Bxa2 {[%clk 0:00:05.9]} 43... d1=Q {[%clk 0:00:51.4]} 44. Qxf7 {[%clk
0:00:03.7]} 44... Qxf1+ {[%clk 0:00:50.2]} 45. Kxf1 {[%clk 0:00:04.4]} 45...
Rd1# {[%clk 0:00:50.4]} 0-1

[Event "*** Titled Tuesday Blitz"]
[Site "Chess.com"]
[Date "2021.03.02"]
[Round "7"]
[White "lacafi"]
[Black "Eloist"]
[Result "0-1"]
[WhiteElo "2160"]
[BlackElo "2324"]
[TimeControl "180+1"]
[EndTime "11:18:10 PST"]
[Termination "Eloist won on time"]

1. d4 {[%clk 0:03:00.9]} 1... e6 {[%clk 0:02:59.4]} 2. Nf3 {[%clk 0:03:00]} 2...
Nf6 {[%clk 0:02:59.5]} 3. e3 {[%clk 0:02:59.9]} 3... b6 {[%clk 0:02:59.5]} 4.
Bd3 {[%clk 0:02:59.8]} 4... Bb7 {[%clk 0:02:59.7]} 5. Nbd2 {[%clk 0:02:59.4]}
5... c5 {[%clk 0:02:59.8]} 6. Qe2 {[%clk 0:02:59.6]} 6... g6 {[%clk 0:02:59.9]}
7. O-O {[%clk 0:02:58.8]} 7... Bg7 {[%clk 0:03:00]} 8. c3 {[%clk 0:02:59.1]}
8... O-O {[%clk 0:02:59.4]} 9. e4 {[%clk 0:02:59.7]} 9... cxd4 {[%clk
0:02:57.3]} 10. cxd4 {[%clk 0:03:00.1]} 10... d5 {[%clk 0:02:54.9]} 11. e5
{[%clk 0:02:59.4]} 11... Nfd7 {[%clk 0:02:54.2]} 12. h4 {[%clk 0:02:51.4]} 12...
Nc6 {[%clk 0:02:26.4]} 13. a3 {[%clk 0:02:51.1]} 13... Nxd4 {[%clk 0:02:17.4]}
14. Nxd4 {[%clk 0:02:49.3]} 14... Nxe5 {[%clk 0:02:17.8]} 15. N2f3 {[%clk
0:02:41.5]} 15... Nxd3 {[%clk 0:02:14.9]} 16. Qxd3 {[%clk 0:02:41.5]} 16... e5
{[%clk 0:02:12]} 17. Bg5 {[%clk 0:01:35.5]} 17... Qb8 {[%clk 0:01:11.7]} 18. Nb5
{[%clk 0:00:13.9]} 18... e4 {[%clk 0:01:08.1]} 19. Qb3 {[%clk 0:00:11.9]} 19...
exf3 {[%clk 0:01:05.5]} 20. Qxf3 {[%clk 0:00:12.8]} 20... d4 {[%clk 0:00:57.8]}
21. Qb3 {[%clk 0:00:09.2]} 21... a6 {[%clk 0:00:43.3]} 22. Be7 {[%clk
0:00:04.2]} 22... axb5 {[%clk 0:00:38.4]} 23. Bxf8 {[%clk 0:00:04.2]} 23... Qxf8
{[%clk 0:00:33.6]} 24. Rfe1 {[%clk 0:00:03.8]} 24... Qd6 {[%clk 0:00:26.5]} 25.
Qxb5 {[%clk 0:00:02.7]} 25... h5 {[%clk 0:00:16.9]} 26. Rac1 {[%clk 0:00:02.2]}
26... d3 {[%clk 0:00:16.2]} 0-1

[Event "*** Titled Tuesday Blitz"]
[Site "Chess.com"]
[Date "2021.03.02"]
[Round "7"]
[White "Homyakova_Elena"]
[Black "Babujj"]
[Result "0-1"]
[WhiteElo "2300"]
[BlackElo "2463"]
[TimeControl "180+1"]
[EndTime "11:18:11 PST"]
[Termination "Babujj won by resignation"]

1. e4 {[%clk 0:03:00.9]} 1... e6 {[%clk 0:02:59.9]} 2. d4 {[%clk 0:03:00.7]}
2... d5 {[%clk 0:02:59.8]} 3. Nd2 {[%clk 0:03:00.9]} 3... c5 {[%clk 0:02:59.8]}
4. exd5 {[%clk 0:03:00.8]} 4... Qxd5 {[%clk 0:03:00.7]} 5. Ngf3 {[%clk
0:03:00.7]} 5... cxd4 {[%clk 0:03:01.2]} 6. Bc4 {[%clk 0:03:00.6]} 6... Qd6
{[%clk 0:03:01.5]} 7. O-O {[%clk 0:03:01.2]} 7... Nf6 {[%clk 0:03:01.9]} 8. Nb3
{[%clk 0:03:01.7]} 8... Nc6 {[%clk 0:03:02.2]} 9. Nbxd4 {[%clk 0:03:02.2]} 9...
Nxd4 {[%clk 0:03:03.1]} 10. Nxd4 {[%clk 0:03:02.8]} 10... a6 {[%clk 0:03:02.7]}
11. c3 {[%clk 0:03:01]} 11... Qc7 {[%clk 0:03:02.7]} 12. Bb3 {[%clk 0:03:00.7]}
12... Bd6 {[%clk 0:03:02.8]} 13. h3 {[%clk 0:02:56.6]} 13... O-O {[%clk
0:03:01.9]} 14. Qf3 {[%clk 0:02:53.9]} 14... e5 {[%clk 0:02:30.9]} 15. Nc2
{[%clk 0:01:57.4]} 15... Bd7 {[%clk 0:02:26.8]} 16. Bg5 {[%clk 0:01:52.9]} 16...
Bc6 {[%clk 0:02:25.5]} 17. Qe2 {[%clk 0:01:48.2]} 17... Nd7 {[%clk 0:02:21.8]}
18. Ne3 {[%clk 0:01:43.1]} 18... Nc5 {[%clk 0:02:12.2]} 19. Bc2 {[%clk
0:01:38.7]} 19... e4 {[%clk 0:01:32.5]} 20. Nf5 {[%clk 0:01:30]} 20... Ne6
{[%clk 0:01:32]} 21. Be3 {[%clk 0:01:17.1]} 21... Bb5 {[%clk 0:01:28.2]} 22. Qg4
{[%clk 0:01:04.4]} 22... Bxf1 {[%clk 0:01:21.9]} 23. Rxf1 {[%clk 0:01:02.7]}
23... g6 {[%clk 0:00:50.2]} 24. Bxe4 {[%clk 0:00:51.6]} 24... Bf4 {[%clk
0:00:45.9]} 25. Nh6+ {[%clk 0:00:37.8]} 25... Kg7 {[%clk 0:00:25.5]} 26. Nf5+
{[%clk 0:00:35.7]} 26... Kh8 {[%clk 0:00:24.9]} 27. Nd4 {[%clk 0:00:17.3]} 27...
Bxe3 {[%clk 0:00:20.9]} 28. fxe3 {[%clk 0:00:18.2]} 28... Nxd4 {[%clk 0:00:21]}
29. exd4 {[%clk 0:00:18.4]} 29... f5 {[%clk 0:00:20.5]} 0-1

[Event "*** Titled Tuesday Blitz"]
[Site "Chess.com"]
[Date "2021.03.02"]
[Round "7"]
[White "CraiggoryC"]
[Black "GMaka"]
[Result "0-1"]
[WhiteElo "2272"]
[BlackElo "2449"]
[TimeControl "180+1"]
[EndTime "11:18:12 PST"]
[Termination "GMaka won on time"]

1. e4 {[%clk 0:03:00.9]} 1... c6 {[%clk 0:02:58.7]} 2. Nf3 {[%clk 0:03:00.7]}
2... d5 {[%clk 0:02:59.6]} 3. e5 {[%clk 0:03:00.9]} 3... Bg4 {[%clk 0:02:58.9]}
4. d4 {[%clk 0:03:01.5]} 4... e6 {[%clk 0:02:59.1]} 5. c3 {[%clk 0:03:02.1]}
5... c5 {[%clk 0:02:54.2]} 6. dxc5 {[%clk 0:03:03]} 6... Bxf3 {[%clk 0:02:53.3]}
7. Qxf3 {[%clk 0:03:02.7]} 7... Bxc5 {[%clk 0:02:53.8]} 8. b4 {[%clk 0:03:02.8]}
8... Be7 {[%clk 0:02:42.7]} 9. Qg3 {[%clk 0:02:59.8]} 9... g6 {[%clk 0:02:42.5]}
10. Bd3 {[%clk 0:02:54.1]} 10... Nc6 {[%clk 0:02:38.9]} 11. O-O {[%clk 0:02:47]}
11... Qc7 {[%clk 0:02:37.1]} 12. f4 {[%clk 0:02:43.2]} 12... Nh6 {[%clk
0:02:36.9]} 13. Na3 {[%clk 0:02:04.8]} 13... a6 {[%clk 0:02:36.5]} 14. Be3
{[%clk 0:01:59.9]} 14... Bf8 {[%clk 0:01:58.9]} 15. Rac1 {[%clk 0:01:47.1]}
15... Nf5 {[%clk 0:01:54.6]} 16. Bxf5 {[%clk 0:01:46.5]} 16... gxf5 {[%clk
0:01:55.5]} 17. Nc2 {[%clk 0:01:37.1]} 17... h5 {[%clk 0:01:54.3]} 18. Nd4
{[%clk 0:01:30.2]} 18... Nxd4 {[%clk 0:01:47]} 19. Bxd4 {[%clk 0:01:30.3]} 19...
Qc4 {[%clk 0:01:45.4]} 20. Qf2 {[%clk 0:00:54.6]} 20... h4 {[%clk 0:01:41.4]}
21. h3 {[%clk 0:00:54.5]} 21... Be7 {[%clk 0:01:36.7]} 22. Rfe1 {[%clk
0:00:49.8]} 22... Rg8 {[%clk 0:01:35.3]} 23. Kh2 {[%clk 0:00:41.7]} 23... Kd7
{[%clk 0:01:30.5]} 24. Re3 {[%clk 0:00:40.2]} 24... Rg6 {[%clk 0:01:29.4]} 25.
Qe2 {[%clk 0:00:32.7]} 25... Qxe2 {[%clk 0:01:26.4]} 26. Rxe2 {[%clk 0:00:32.8]}
26... Rc8 {[%clk 0:01:22]} 27. a3 {[%clk 0:00:27.4]} 27... Rc4 {[%clk
0:01:18.2]} 28. Rb1 {[%clk 0:00:22.6]} 28... Kc6 {[%clk 0:01:17.2]} 29. Re3
{[%clk 0:00:22.6]} 29... Kb5 {[%clk 0:01:17.3]} 30. Bc5 {[%clk 0:00:20.7]} 30...
Bxc5 {[%clk 0:01:09.9]} 31. bxc5+ {[%clk 0:00:21.6]} 31... Kc6 {[%clk
0:01:09.9]} 32. Rb6+ {[%clk 0:00:20.2]} 32... Kc7 {[%clk 0:01:10.1]} 33. Rb4
{[%clk 0:00:13]} 33... Rxc5 {[%clk 0:01:09.2]} 34. Kg1 {[%clk 0:00:12.1]} 34...
a5 {[%clk 0:01:03.9]} 35. Ra4 {[%clk 0:00:08.3]} 35... Kb6 {[%clk 0:01:00.2]}
36. Kf2 {[%clk 0:00:07.2]} 36... Kb5 {[%clk 0:00:52.9]} 37. Rd4 {[%clk
0:00:06.9]} 37... Rc4 {[%clk 0:00:53.4]} 38. Red3 {[%clk 0:00:05.1]} 38... Kc5
{[%clk 0:00:50.1]} 39. Rxc4+ {[%clk 0:00:04.1]} 39... Kxc4 {[%clk 0:00:50.1]}
40. Re3 {[%clk 0:00:03.1]} 40... b5 {[%clk 0:00:46.8]} 0-1

[Event "*** Titled Tuesday Blitz"]
[Site "Chess.com"]
[Date "2021.03.02"]
[Round "7"]
[White "arminmusovic"]
[Black "Deepweb2020"]
[Result "1-0"]
[WhiteElo "2547"]
[BlackElo "2406"]
[TimeControl "180+1"]
[EndTime "11:18:15 PST"]
[Termination "arminmusovic won by checkmate"]

1. a3 {[%clk 0:03:00.9]} 1... e5 {[%clk 0:02:59.4]} 2. Nc3 {[%clk 0:03:01.8]}
2... d5 {[%clk 0:02:58.8]} 3. d4 {[%clk 0:03:02.3]} 3... e4 {[%clk 0:02:50]} 4.
Bf4 {[%clk 0:03:02]} 4... Bd6 {[%clk 0:02:48.3]} 5. Nxd5 {[%clk 0:03:01.7]} 5...
Nc6 {[%clk 0:02:32.5]} 6. e3 {[%clk 0:02:54.8]} 6... Bxf4 {[%clk 0:02:26.5]} 7.
Nxf4 {[%clk 0:02:55.7]} 7... g5 {[%clk 0:02:27.1]} 8. Nh5 {[%clk 0:02:52.5]}
8... Nh6 {[%clk 0:02:23.1]} 9. Ng7+ {[%clk 0:02:45.3]} 9... Kf8 {[%clk
0:02:17.6]} 10. Nh5 {[%clk 0:02:46.2]} 10... f5 {[%clk 0:02:04.8]} 11. h4 {[%clk
0:02:37]} 11... gxh4 {[%clk 0:01:58.8]} 12. Nf4 {[%clk 0:02:35.2]} 12... Ng4
{[%clk 0:01:47.6]} 13. Be2 {[%clk 0:02:27.9]} 13... Qg5 {[%clk 0:01:46.7]} 14.
Ngh3 {[%clk 0:02:25.9]} 14... Qg7 {[%clk 0:01:39.7]} 15. Nh5 {[%clk 0:02:20.2]}
15... Qg5 {[%clk 0:01:35.8]} 16. N3f4 {[%clk 0:02:14.7]} 16... Bd7 {[%clk
0:01:34.2]} 17. g3 {[%clk 0:02:11.7]} 17... hxg3 {[%clk 0:01:31.5]} 18. Nxg3
{[%clk 0:02:12.6]} 18... Nxe3 {[%clk 0:01:22.6]} 19. fxe3 {[%clk 0:02:07.4]}
19... Qxg3+ {[%clk 0:01:22.5]} 20. Kd2 {[%clk 0:02:08]} 20... Nxd4 {[%clk
0:01:07.8]} 21. Rh3 {[%clk 0:01:39.5]} 21... Qg5 {[%clk 0:00:43.6]} 22. Rh5
{[%clk 0:01:39.7]} 22... Qg3 {[%clk 0:00:39.3]} 23. Qh1 {[%clk 0:01:34.4]} 23...
Nxe2 {[%clk 0:00:17.6]} 24. Nxe2 {[%clk 0:01:35]} 24... Qd6+ {[%clk 0:00:17.7]}
25. Kc1 {[%clk 0:01:27.3]} 25... Be6 {[%clk 0:00:12.3]} 26. b3 {[%clk
0:01:24.9]} 26... Rd8 {[%clk 0:00:11.9]} 27. Kb2 {[%clk 0:01:19.6]} 27... Qe5+
{[%clk 0:00:12.1]} 28. Nc3 {[%clk 0:01:17.8]} 28... b5 {[%clk 0:00:10.1]} 29.
Rf1 {[%clk 0:01:18.2]} 29... a5 {[%clk 0:00:09.1]} 30. Qxe4 {[%clk 0:01:18.2]}
30... Qf6 {[%clk 0:00:07]} 31. Rhxf5 {[%clk 0:01:17.7]} 31... Bxf5 {[%clk
0:00:06.5]} 32. Rxf5 {[%clk 0:01:18.6]} 32... Kg7 {[%clk 0:00:05.9]} 33. Rxf6
{[%clk 0:01:18.3]} 33... Kxf6 {[%clk 0:00:06.3]} 34. Nxb5 {[%clk 0:01:18.9]}
34... h5 {[%clk 0:00:07.2]} 35. Qf4+ {[%clk 0:01:18.7]} 35... Ke6 {[%clk
0:00:07.4]} 36. Nxc7+ {[%clk 0:01:18.8]} 36... Kd7 {[%clk 0:00:07.9]} 37. Qf7+
{[%clk 0:01:16.8]} 37... Kc6 {[%clk 0:00:07.8]} 38. Ne6 {[%clk 0:01:17.3]} 38...
Rde8 {[%clk 0:00:04.8]} 39. Nd4+ {[%clk 0:01:17.1]} 39... Kd6 {[%clk 0:00:04.9]}
40. Qf6+ {[%clk 0:01:16.4]} 40... Kd5 {[%clk 0:00:05.2]} 41. Qf5+ {[%clk
0:01:16.4]} 41... Kd6 {[%clk 0:00:05.3]} 42. c4 {[%clk 0:01:14.8]} 42... h4
{[%clk 0:00:05.1]} 43. Qd5+ {[%clk 0:01:11.9]} 43... Ke7 {[%clk 0:00:05.3]} 44.
Qe5+ {[%clk 0:01:10.9]} 44... Kf7 {[%clk 0:00:04.9]} 45. Qf5+ {[%clk 0:01:10.2]}
45... Kg7 {[%clk 0:00:01.8]} 46. Ne6+ {[%clk 0:01:10.1]} 46... Kh6 {[%clk
0:00:01.4]} 47. Qf6+ {[%clk 0:01:09.9]} 47... Kh7 {[%clk 0:00:01.2]} 48. Qg7#
{[%clk 0:01:10]} 1-0

[Event "*** Titled Tuesday Blitz"]
[Site "Chess.com"]
[Date "2021.03.02"]
[Round "7"]
[White "kai_nov"]
[Black "zim0ne"]
[Result "1-0"]
[WhiteElo "2397"]
[BlackElo "2507"]
[TimeControl "180+1"]
[EndTime "11:18:15 PST"]
[Termination "kai_nov won by resignation"]

1. d4 {[%clk 0:03:00.9]} 1... Nf6 {[%clk 0:02:58.2]} 2. c4 {[%clk 0:02:59.7]}
2... g6 {[%clk 0:02:57.4]} 3. f3 {[%clk 0:02:59.3]} 3... Bg7 {[%clk 0:02:53.5]}
4. e4 {[%clk 0:02:58.9]} 4... d6 {[%clk 0:02:54.4]} 5. Nc3 {[%clk 0:02:58.5]}
5... O-O {[%clk 0:02:54.9]} 6. Bg5 {[%clk 0:02:57.6]} 6... c5 {[%clk 0:02:54.1]}
7. d5 {[%clk 0:02:57.2]} 7... h6 {[%clk 0:02:52.9]} 8. Be3 {[%clk 0:02:56.2]}
8... e6 {[%clk 0:02:53.3]} 9. Qd2 {[%clk 0:02:53.7]} 9... exd5 {[%clk 0:02:53]}
10. cxd5 {[%clk 0:02:53.2]} 10... h5 {[%clk 0:02:53.9]} 11. a4 {[%clk
0:02:48.8]} 11... Nbd7 {[%clk 0:02:51.9]} 12. Nh3 {[%clk 0:02:36.3]} 12... Ne5
{[%clk 0:02:51.2]} 13. Nf2 {[%clk 0:02:35.7]} 13... Qa5 {[%clk 0:02:48.1]} 14.
Ra3 {[%clk 0:02:30.6]} 14... Bd7 {[%clk 0:02:41.9]} 15. Be2 {[%clk 0:02:29.8]}
15... Qc7 {[%clk 0:02:33.3]} 16. O-O {[%clk 0:02:28.7]} 16... b6 {[%clk
0:02:33.5]} 17. h3 {[%clk 0:02:28.4]} 17... Bc8 {[%clk 0:02:30.2]} 18. Nb5
{[%clk 0:02:09.6]} 18... Qd8 {[%clk 0:02:28.1]} 19. f4 {[%clk 0:02:06.6]} 19...
Ned7 {[%clk 0:02:17.2]} 20. Nxd6 {[%clk 0:02:06.1]} 20... Qe7 {[%clk 0:02:10.3]}
21. e5 {[%clk 0:02:03.1]} 21... Ne8 {[%clk 0:02:10.4]} 22. Nxc8 {[%clk
0:01:56.7]} 22... Rxc8 {[%clk 0:02:10.4]} 23. Bc4 {[%clk 0:01:40.1]} 23... Kh8
{[%clk 0:02:00.2]} 24. Ne4 {[%clk 0:01:30.7]} 24... Qh4 {[%clk 0:01:51.8]} 25.
Bf2 {[%clk 0:00:55.8]} 25... Qd8 {[%clk 0:01:50.6]} 26. Ng5 {[%clk 0:00:46.2]}
26... Bh6 {[%clk 0:01:45.3]} 27. Bh4 {[%clk 0:00:42.1]} 27... Bxg5 {[%clk
0:01:25.9]} 28. Bxg5 {[%clk 0:00:41.4]} 28... f6 {[%clk 0:01:22.3]} 29. Bh4
{[%clk 0:00:38.8]} 29... Qe7 {[%clk 0:01:20.1]} 30. d6 {[%clk 0:00:35.7]} 30...
Qg7 {[%clk 0:01:16.8]} 31. e6 {[%clk 0:00:35.5]} 31... Nb8 {[%clk 0:01:12.8]}
32. e7 {[%clk 0:00:25.1]} 32... Rf7 {[%clk 0:00:57.7]} 33. Bxf7 {[%clk
0:00:23.7]} 33... Qxf7 {[%clk 0:00:58.4]} 34. d7 {[%clk 0:00:23.4]} 34... Nxd7
{[%clk 0:00:57.4]} 35. Qxd7 {[%clk 0:00:23.3]} 35... Rc7 {[%clk 0:00:57.6]} 36.
Qd8 {[%clk 0:00:20.8]} 36... Rxe7 {[%clk 0:00:58.5]} 37. Rd3 {[%clk 0:00:18]}
37... Kg7 {[%clk 0:00:56.3]} 38. f5 {[%clk 0:00:17.8]} 38... gxf5 {[%clk
0:00:52.4]} 39. Rxf5 {[%clk 0:00:16.4]} 39... Nc7 {[%clk 0:00:52.2]} 40. Rg3+
{[%clk 0:00:15.6]} 40... Kh7 {[%clk 0:00:50.8]} 41. Rxf6 {[%clk 0:00:15.3]} 1-0

[Event "*** Titled Tuesday Blitz"]
[Site "Chess.com"]
[Date "2021.03.02"]
[Round "7"]
[White "NikolaN98"]
[Black "Rytenko_V"]
[Result "1-0"]
[WhiteElo "2521"]
[BlackElo "2375"]
[TimeControl "180+1"]
[EndTime "11:18:15 PST"]
[Termination "NikolaN98 won on time"]

1. d3 {[%clk 0:03:00.9]} 1... d5 {[%clk 0:02:59.4]} 2. Nf3 {[%clk 0:02:58.2]}
2... c5 {[%clk 0:02:59.2]} 3. g3 {[%clk 0:02:57.1]} 3... Nc6 {[%clk 0:02:59.4]}
4. Bg2 {[%clk 0:02:57.5]} 4... e5 {[%clk 0:02:57.4]} 5. O-O {[%clk 0:02:52.5]}
5... Be6 {[%clk 0:02:57.4]} 6. e4 {[%clk 0:02:45.5]} 6... dxe4 {[%clk
0:02:45.8]} 7. Ng5 {[%clk 0:02:31.8]} 7... Bd5 {[%clk 0:02:13.7]} 8. Nc3 {[%clk
0:02:05.4]} 8... Nf6 {[%clk 0:01:48.1]} 9. Nxd5 {[%clk 0:01:40.8]} 9... Nxd5
{[%clk 0:01:47.8]} 10. dxe4 {[%clk 0:01:33.2]} 10... Nf6 {[%clk 0:01:25.7]} 11.
c3 {[%clk 0:01:30.8]} 11... Qxd1 {[%clk 0:01:22.1]} 12. Rxd1 {[%clk 0:01:29.9]}
12... Be7 {[%clk 0:01:22]} 13. f3 {[%clk 0:01:24.9]} 13... O-O {[%clk
0:01:13.4]} 14. Bf1 {[%clk 0:01:23.6]} 14... h6 {[%clk 0:01:02.7]} 15. Nh3
{[%clk 0:01:23]} 15... a6 {[%clk 0:01:02.9]} 16. Nf2 {[%clk 0:01:13.1]} 16...
Rfd8 {[%clk 0:01:02.7]} 17. Be3 {[%clk 0:01:11.9]} 17... b5 {[%clk 0:01:01.4]}
18. Rxd8+ {[%clk 0:01:04.5]} 18... Rxd8 {[%clk 0:01:00.5]} 19. a4 {[%clk
0:01:03.5]} 19... Rb8 {[%clk 0:00:52.9]} 20. axb5 {[%clk 0:01:02.6]} 20... axb5
{[%clk 0:00:53.8]} 21. Ra6 {[%clk 0:00:58.1]} 21... Nd8 {[%clk 0:00:47.9]} 22.
Nd3 {[%clk 0:00:53.7]} 22... Nd7 {[%clk 0:00:23.3]} 23. Bh3 {[%clk 0:00:41.6]}
23... Rb7 {[%clk 0:00:17.8]} 24. Ra8 {[%clk 0:00:34.9]} 24... Kh7 {[%clk
0:00:13.5]} 25. Kf2 {[%clk 0:00:33.8]} 25... f6 {[%clk 0:00:10.9]} 26. Ke2
{[%clk 0:00:31.8]} 26... c4 {[%clk 0:00:10.4]} 27. Nb4 {[%clk 0:00:20.6]} 27...
Bxb4 {[%clk 0:00:06.4]} 28. Rxd8 {[%clk 0:00:20.5]} 28... Bxc3 {[%clk
0:00:03.2]} 29. bxc3 {[%clk 0:00:20.3]} 1-0